[Event "*** Titled Tuesday Blitz"]
[Site "Chess.com"]
[Date "2019.02.05"]
[Round "4"]
[White "Satscho"]
[Black "Blitzstream"]
[Result "0-1"]
[WhiteElo "2310"]
[BlackElo "2556"]
[TimeControl "180+2"]
[EndTime "13:50:36 PST"]
[Termination "Blitzstream won on time"]

1. e4 {[%clk 0:03:01.9]} 1... b6 {[%clk 0:02:59.7]} 2. d4 {[%clk 0:02:59.3]}
2... Bb7 {[%clk 0:03:01.3]} 3. Nc3 {[%clk 0:03:00.8]} 3... g6 {[%clk 0:03:02.6]}
4. Be3 {[%clk 0:02:59.8]} 4... Bg7 {[%clk 0:03:03.7]} 5. f4 {[%clk 0:03:01.1]}
5... e6 {[%clk 0:03:04.3]} 6. Nf3 {[%clk 0:03:02.1]} 6... d6 {[%clk 0:03:05.7]}
7. Bd3 {[%clk 0:03:03]} 7... Ne7 {[%clk 0:03:07]} 8. O-O {[%clk 0:03:03.8]} 8...
Nd7 {[%clk 0:03:08.2]} 9. f5 {[%clk 0:03:03]} 9... exf5 {[%clk 0:02:54.7]} 10.
exf5 {[%clk 0:03:04.9]} 10... Nf6 {[%clk 0:02:47.6]} 11. Ng5 {[%clk 0:02:35.2]}
11... Qd7 {[%clk 0:02:30]} 12. Qe2 {[%clk 0:01:59.5]} 12... gxf5 {[%clk
0:02:12]} 13. Rae1 {[%clk 0:01:24.9]} 13... h6 {[%clk 0:01:54.5]} 14. Nf3 {[%clk
0:00:46.4]} 14... Ne4 {[%clk 0:01:55.6]} 15. Nh4 {[%clk 0:00:43.3]} 15... O-O-O
{[%clk 0:01:55.5]} 16. Bxe4 {[%clk 0:00:43.6]} 16... fxe4 {[%clk 0:01:52.3]} 17.
Rxf7 {[%clk 0:00:44.6]} 17... Rhg8 {[%clk 0:01:42.1]} 18. Nf5 {[%clk 0:00:45.3]}
18... Qxf5 {[%clk 0:01:43.1]} 19. Rxf5 {[%clk 0:00:45.3]} 19... Nxf5 {[%clk
0:01:45]} 20. Qg4 {[%clk 0:00:44.6]} 20... Rdf8 {[%clk 0:01:34.5]} 21. Qh3
{[%clk 0:00:37.2]} 21... Kb8 {[%clk 0:01:30]} 22. Ne2 {[%clk 0:00:37.4]} 22...
Ba6 {[%clk 0:01:20.7]} 23. c3 {[%clk 0:00:35.4]} 23... Bc8 {[%clk 0:01:08.6]}
24. Rf1 {[%clk 0:00:21.3]} 24... Nxd4 {[%clk 0:00:59.4]} 25. Qh5 {[%clk
0:00:19.4]} 25... Nf5 {[%clk 0:00:24.5]} 26. Bf4 {[%clk 0:00:13.4]} 26... e3
{[%clk 0:00:24.9]} 27. Qf3 {[%clk 0:00:09.5]} 27... Bb7 {[%clk 0:00:25.5]} 28.
Qh3 {[%clk 0:00:10.6]} 28... Be5 {[%clk 0:00:20.4]} 29. g3 {[%clk 0:00:07.9]}
29... Bxf4 {[%clk 0:00:10.8]} 30. Rxf4 {[%clk 0:00:09.8]} 30... Ba6 {[%clk
0:00:09.2]} 31. Rxf5 {[%clk 0:00:06.1]} 31... Bxe2 {[%clk 0:00:10.1]} 32. Rxf8+
{[%clk 0:00:04.9]} 32... Rxf8 {[%clk 0:00:12]} 33. Qe6 {[%clk 0:00:06.6]} 33...
Rf1+ {[%clk 0:00:08.1]} 34. Kg2 {[%clk 0:00:07.9]} 34... Rf2+ {[%clk 0:00:09.4]}
35. Kh3 {[%clk 0:00:09]} 35... Bf1+ {[%clk 0:00:10.6]} 36. Kh4 {[%clk 0:00:10]}
36... e2 {[%clk 0:00:10.9]} 37. Qe3 {[%clk 0:00:11]} 37... Rf8 {[%clk
0:00:09.1]} 38. g4 {[%clk 0:00:10.3]} 38... Kc8 {[%clk 0:00:10.2]} 39. Kh5
{[%clk 0:00:11.6]} 39... Kd8 {[%clk 0:00:11.3]} 40. Qg3 {[%clk 0:00:08.1]} 40...
Bg2 {[%clk 0:00:09.2]} 41. Qh4+ {[%clk 0:00:08.4]} 41... Kd7 {[%clk 0:00:08.7]}
42. Kxh6 {[%clk 0:00:09.9]} 42... Rh8+ {[%clk 0:00:08.8]} 0-1

[Event "*** Titled Tuesday Blitz"]
[Site "Chess.com"]
[Date "2019.02.05"]
[Round "4"]
[White "Vamostodorecto"]
[Black "LuisFSiles"]
[Result "1-0"]
[WhiteElo "2457"]
[BlackElo "2253"]
[TimeControl "180+2"]
[EndTime "13:50:40 PST"]
[Termination "Vamostodorecto won by resignation"]

1. d4 {[%clk 0:03:01.9]} 1... Nf6 {[%clk 0:02:59.4]} 2. c4 {[%clk 0:03:02.9]}
2... g6 {[%clk 0:02:59.2]} 3. Nc3 {[%clk 0:03:03.4]} 3... Bg7 {[%clk 0:03:00.3]}
4. e4 {[%clk 0:02:59]} 4... d6 {[%clk 0:03:00.3]} 5. Be2 {[%clk 0:03:00.5]} 5...
O-O {[%clk 0:03:01.2]} 6. Nf3 {[%clk 0:03:01.6]} 6... c5 {[%clk 0:03:01.5]} 7.
d5 {[%clk 0:03:00.6]} 7... e6 {[%clk 0:03:01.8]} 8. O-O {[%clk 0:03:01.2]} 8...
Na6 {[%clk 0:02:58]} 9. Bg5 {[%clk 0:03:00.9]} 9... h6 {[%clk 0:02:49.8]} 10.
Bd2 {[%clk 0:02:50.6]} 10... Nc7 {[%clk 0:02:49.1]} 11. Qc1 {[%clk 0:02:20.9]}
11... Kh7 {[%clk 0:02:48.6]} 12. h3 {[%clk 0:02:06.4]} 12... exd5 {[%clk
0:02:39.4]} 13. exd5 {[%clk 0:02:05.2]} 13... b5 {[%clk 0:02:36.3]} 14. Bd3
{[%clk 0:01:57.7]} 14... Rb8 {[%clk 0:02:21.5]} 15. Bf4 {[%clk 0:01:40.2]} 15...
bxc4 {[%clk 0:02:15.9]} 16. Bxc4 {[%clk 0:01:40.9]} 16... Re8 {[%clk 0:02:02.9]}
17. Rd1 {[%clk 0:01:28.9]} 17... Ba6 {[%clk 0:01:52.9]} 18. Bxa6 {[%clk
0:01:26.1]} 18... Nxa6 {[%clk 0:01:54.8]} 19. Nd2 {[%clk 0:01:21.1]} 19... Nb4
{[%clk 0:01:53.6]} 20. Nc4 {[%clk 0:01:20.5]} 20... Bf8 {[%clk 0:01:01.7]} 21.
a3 {[%clk 0:01:09.1]} 21... Na6 {[%clk 0:00:59]} 22. Qc2 {[%clk 0:00:45.5]}
22... Nc7 {[%clk 0:00:47.5]} 23. Qa4 {[%clk 0:00:27.1]} 23... Ne4 {[%clk
0:00:45]} 24. Qc6 {[%clk 0:00:16.2]} 24... Nxc3 {[%clk 0:00:41.2]} 25. bxc3
{[%clk 0:00:16.4]} 25... Re4 {[%clk 0:00:37.2]} 26. Bxd6 {[%clk 0:00:17.5]}
26... Bxd6 {[%clk 0:00:21.3]} 27. Nxd6 {[%clk 0:00:19.4]} 27... Rb6 {[%clk
0:00:22.5]} 28. Nxf7 {[%clk 0:00:19.5]} 28... Rxc6 {[%clk 0:00:21.5]} 29. Nxd8
{[%clk 0:00:20.2]} 29... Rd6 {[%clk 0:00:22.6]} 30. Nc6 {[%clk 0:00:17.5]} 30...
Rxd5 {[%clk 0:00:23.3]} 31. Nxa7 {[%clk 0:00:17.5]} 31... c4 {[%clk 0:00:23.2]}
32. Nc6 {[%clk 0:00:16.5]} 32... Rd3 {[%clk 0:00:23.3]} 33. Nb4 {[%clk
0:00:15.8]} 33... Rxd1+ {[%clk 0:00:22.7]} 34. Rxd1 {[%clk 0:00:17.7]} 34... Nb5
{[%clk 0:00:22.4]} 35. Rd7+ {[%clk 0:00:16.9]} 35... Kg8 {[%clk 0:00:23.3]} 36.
Nd5 {[%clk 0:00:18]} 36... Re1+ {[%clk 0:00:23.4]} 37. Kh2 {[%clk 0:00:18.6]}
37... Rc1 {[%clk 0:00:24.8]} 38. a4 {[%clk 0:00:17.8]} 38... Nxc3 {[%clk
0:00:25.5]} 39. Nf6+ {[%clk 0:00:16.2]} 39... Kf8 {[%clk 0:00:25.8]} 40. Rc7
{[%clk 0:00:15.8]} 40... Nxa4 {[%clk 0:00:25.2]} 41. Nd7+ {[%clk 0:00:12.9]}
41... Ke7 {[%clk 0:00:21.7]} 42. Ne5+ {[%clk 0:00:14.8]} 42... Kd6 {[%clk
0:00:22.8]} 43. Rxc4 {[%clk 0:00:14]} 43... Kxe5 {[%clk 0:00:20.5]} 44. Rxc1
{[%clk 0:00:13.9]} 44... Nb6 {[%clk 0:00:19.5]} 45. Rc6 {[%clk 0:00:13.8]} 45...
Nd5 {[%clk 0:00:20.5]} 46. Rxg6 {[%clk 0:00:13.2]} 1-0

[Event "*** Titled Tuesday Blitz"]
[Site "Chess.com"]
[Date "2019.02.05"]
[Round "4"]
[White "BvsN"]
[Black "kacprekt"]
[Result "1/2-1/2"]
[WhiteElo "2301"]
[BlackElo "2314"]
[TimeControl "180+2"]
[EndTime "13:50:46 PST"]
[Termination "Game drawn by agreement"]

1. d4 {[%clk 0:03:01.9]} 1... Nf6 {[%clk 0:02:58.7]} 2. c4 {[%clk 0:03:03]} 2...
g6 {[%clk 0:02:59.4]} 3. Nc3 {[%clk 0:03:04.2]} 3... d5 {[%clk 0:03:00.9]} 4.
Bg5 {[%clk 0:03:04.5]} 4... Ne4 {[%clk 0:03:00.5]} 5. h4 {[%clk 0:03:04.9]} 5...
Nxg5 {[%clk 0:02:43.9]} 6. hxg5 {[%clk 0:03:05.3]} 6... c6 {[%clk 0:02:43.8]} 7.
cxd5 {[%clk 0:03:02.5]} 7... cxd5 {[%clk 0:02:42.9]} 8. Qb3 {[%clk 0:03:03.6]}
8... e6 {[%clk 0:02:37.3]} 9. Nf3 {[%clk 0:03:04.8]} 9... Nc6 {[%clk 0:02:34.9]}
10. e3 {[%clk 0:03:05.6]} 10... Bg7 {[%clk 0:02:26.7]} 11. Be2 {[%clk
0:03:06.7]} 11... O-O {[%clk 0:02:27.1]} 12. O-O-O {[%clk 0:02:57.4]} 12... Na5
{[%clk 0:02:23]} 13. Qc2 {[%clk 0:02:57.4]} 13... Bd7 {[%clk 0:02:14.9]} 14. Rh2
{[%clk 0:02:45.1]} 14... f6 {[%clk 0:01:53.9]} 15. Rdh1 {[%clk 0:02:40.3]} 15...
fxg5 {[%clk 0:01:49.3]} 16. Rxh7 {[%clk 0:02:40.7]} 16... Qf6 {[%clk 0:01:44.7]}
17. Ne5 {[%clk 0:02:34]} 17... Be8 {[%clk 0:01:45.9]} 18. f3 {[%clk 0:02:19.9]}
18... Nc6 {[%clk 0:01:41.3]} 19. Bd3 {[%clk 0:02:14.8]} 19... Nxe5 {[%clk
0:01:40.3]} 20. dxe5 {[%clk 0:02:16]} 20... Qf7 {[%clk 0:01:01.7]} 21. Qf2
{[%clk 0:02:14.2]} 21... d4 {[%clk 0:00:53.8]} 22. Ne4 {[%clk 0:02:05.7]} 22...
dxe3 {[%clk 0:00:54.4]} 23. Qg3 {[%clk 0:01:46.5]} 23... Qc7+ {[%clk 0:00:40.6]}
24. Kb1 {[%clk 0:01:41.4]} 24... Qxe5 {[%clk 0:00:41.5]} 25. Qxe5 {[%clk
0:01:22.5]} 25... Bxe5 {[%clk 0:00:43.4]} 26. Nxg5 {[%clk 0:01:19.4]} 26... Rd8
{[%clk 0:00:11.7]} 27. Bc4 {[%clk 0:01:15.4]} 27... e2 {[%clk 0:00:12.9]} 28.
Bxe6+ {[%clk 0:00:39.2]} 28... Bf7 {[%clk 0:00:13.2]} 29. Rxf7 {[%clk
0:00:04.4]} 29... Rd1+ {[%clk 0:00:13.3]} 30. Kc2 {[%clk 0:00:05.1]} 30... Rxf7
{[%clk 0:00:04.2]} 31. Bxf7+ {[%clk 0:00:05.1]} 31... Kg7 {[%clk 0:00:05.8]} 32.
Rxd1 {[%clk 0:00:06.6]} 32... exd1=Q+ {[%clk 0:00:06.2]} 33. Kxd1 {[%clk
0:00:08.3]} 33... Kf6 {[%clk 0:00:07.2]} 34. Bd5 {[%clk 0:00:07.6]} 34... Kxg5
{[%clk 0:00:07.6]} 35. Bxb7 {[%clk 0:00:09.1]} 35... Bxb2 {[%clk 0:00:08.9]} 36.
Ke2 {[%clk 0:00:10.3]} 36... Bd4 {[%clk 0:00:09.9]} 37. Kd3 {[%clk 0:00:11.1]}
37... Bb6 {[%clk 0:00:11]} 38. Ke4 {[%clk 0:00:12.1]} 38... Bc5 {[%clk
0:00:12.3]} 39. g3 {[%clk 0:00:12.4]} 39... Kf6 {[%clk 0:00:13.7]} 40. f4 {[%clk
0:00:13.5]} 40... Bb6 {[%clk 0:00:15]} 41. g4 {[%clk 0:00:14.7]} 41... Bc5
{[%clk 0:00:16.1]} 42. g5+ {[%clk 0:00:11.7]} 42... Kg7 {[%clk 0:00:17.2]} 43.
Ke5 {[%clk 0:00:11.4]} 43... Bb6 {[%clk 0:00:18.1]} 44. f5 {[%clk 0:00:09.2]}
44... gxf5 {[%clk 0:00:19.1]} 45. Kxf5 {[%clk 0:00:10.7]} 45... Be3 {[%clk
0:00:19.8]} 46. Be4 {[%clk 0:00:11.1]} 46... Bb6 {[%clk 0:00:20.8]} 47. g6
{[%clk 0:00:12.3]} 47... Bc5 {[%clk 0:00:22.1]} 48. Ke6 {[%clk 0:00:13.7]} 48...
Bg1 {[%clk 0:00:23.2]} 49. Kd5 {[%clk 0:00:14.8]} 49... Bf2 {[%clk 0:00:24.6]}
50. Kc6 {[%clk 0:00:16.3]} 50... Bg1 {[%clk 0:00:26.2]} 51. a4 {[%clk
0:00:16.9]} 51... Bf2 {[%clk 0:00:27.5]} 52. a5 {[%clk 0:00:18.3]} 52... Bg1
{[%clk 0:00:28.9]} 53. a6 {[%clk 0:00:19.9]} 53... Bf2 {[%clk 0:00:30.2]} 54.
Kb7 {[%clk 0:00:21.3]} 54... Bg1 {[%clk 0:00:31.7]} 1/2-1/2

[Event "*** Titled Tuesday Blitz"]
[Site "Chess.com"]
[Date "2019.02.05"]
[Round "4"]
[White "BasilSmash"]
[Black "DonPreuss"]
[Result "1-0"]
[WhiteElo "2345"]
[BlackElo "2193"]
[TimeControl "180+2"]
[EndTime "13:50:58 PST"]
[Termination "BasilSmash won by resignation"]

1. e4 {[%clk 0:03:01.9]} 1... e5 {[%clk 0:03:00.2]} 2. Nf3 {[%clk 0:03:02.3]}
2... d5 {[%clk 0:03:01.4]} 3. Nxe5 {[%clk 0:02:59.2]} 3... Bd6 {[%clk
0:03:01.5]} 4. d4 {[%clk 0:02:59.2]} 4... dxe4 {[%clk 0:03:02.8]} 5. Nc4 {[%clk
0:02:59.9]} 5... Ne7 {[%clk 0:03:03.4]} 6. Be2 {[%clk 0:02:59.3]} 6... O-O
{[%clk 0:03:03.3]} 7. O-O {[%clk 0:02:59.6]} 7... f5 {[%clk 0:03:04.2]} 8. Nxd6
{[%clk 0:02:58.9]} 8... cxd6 {[%clk 0:03:04.8]} 9. f3 {[%clk 0:02:56.8]} 9... d5
{[%clk 0:03:04.7]} 10. c4 {[%clk 0:02:53.4]} 10... Be6 {[%clk 0:03:04.9]} 11. c5
{[%clk 0:02:49.5]} 11... Nbc6 {[%clk 0:02:59.6]} 12. Nc3 {[%clk 0:02:50.2]}
12... a6 {[%clk 0:02:57.7]} 13. a3 {[%clk 0:02:49.6]} 13... Ng6 {[%clk 0:02:53]}
14. f4 {[%clk 0:02:49.5]} 14... h6 {[%clk 0:02:31]} 15. Be3 {[%clk 0:02:49.8]}
15... Kh7 {[%clk 0:02:31.4]} 16. b4 {[%clk 0:02:50.3]} 16... Nh8 {[%clk
0:01:58.2]} 17. Rb1 {[%clk 0:02:47.2]} 17... Qh4 {[%clk 0:01:57.5]} 18. Qd2
{[%clk 0:02:42.4]} 18... Rg8 {[%clk 0:01:52.2]} 19. a4 {[%clk 0:02:42.2]} 19...
Qf6 {[%clk 0:01:45.3]} 20. Kh1 {[%clk 0:02:37.5]} 20... g5 {[%clk 0:01:44]} 21.
g3 {[%clk 0:02:26.2]} 21... g4 {[%clk 0:01:33.5]} 22. Kg2 {[%clk 0:02:18.5]}
22... Kg6 {[%clk 0:01:33.2]} 23. Rh1 {[%clk 0:02:15.3]} 23... h5 {[%clk
0:01:34.3]} 24. h4 {[%clk 0:02:16.2]} 24... gxh3+ {[%clk 0:01:34.3]} 25. Rxh3
{[%clk 0:02:16.7]} 25... Nf7 {[%clk 0:01:35.2]} 26. Bxh5+ {[%clk 0:02:16.4]}
26... Kg7 {[%clk 0:01:35.8]} 27. Bxf7 {[%clk 0:02:15]} 27... Kxf7 {[%clk
0:01:34.2]} 28. b5 {[%clk 0:02:13.4]} 28... axb5 {[%clk 0:01:33.5]} 29. axb5
{[%clk 0:02:15.3]} 29... Ne7 {[%clk 0:01:32.2]} 30. Rbh1 {[%clk 0:02:15.1]}
30... Rg7 {[%clk 0:01:33]} 31. b6 {[%clk 0:02:12.9]} 31... Rag8 {[%clk
0:01:30.1]} 32. Nb5 {[%clk 0:02:12.5]} 32... Nc8 {[%clk 0:01:28.9]} 33. Rh7
{[%clk 0:02:07.7]} 33... Qg6 {[%clk 0:01:26.3]} 34. Rxg7+ {[%clk 0:02:07.9]}
34... Rxg7 {[%clk 0:01:28.2]} 35. Rh3 {[%clk 0:02:08.3]} 35... Qg4 {[%clk
0:01:26.3]} 36. Nc7 {[%clk 0:01:48.9]} 36... Ne7 {[%clk 0:01:06.8]} 37. Bf2
{[%clk 0:01:46.5]} 37... Qf3+ {[%clk 0:01:05.9]} 38. Kg1 {[%clk 0:01:43.4]}
38... Ng6 {[%clk 0:00:57.9]} 39. Kh2 {[%clk 0:01:08.2]} 39... Bd7 {[%clk
0:00:29.5]} 40. Nxd5 {[%clk 0:01:04.8]} 40... Bb5 {[%clk 0:00:28.7]} 41. Ne3
{[%clk 0:01:04.1]} 41... Nxf4 {[%clk 0:00:20.9]} 42. gxf4 {[%clk 0:00:58.1]}
42... Qxf4+ {[%clk 0:00:20.1]} 43. Bg3 {[%clk 0:00:58.7]} 43... Qf3 {[%clk
0:00:17.6]} 44. Qf2 {[%clk 0:00:57.6]} 44... Qxf2+ {[%clk 0:00:16.8]} 45. Bxf2
{[%clk 0:00:57.8]} 45... f4 {[%clk 0:00:18.1]} 46. Nf5 {[%clk 0:00:57.4]} 46...
Rg5 {[%clk 0:00:15.4]} 47. Nd6+ {[%clk 0:00:57.8]} 47... Kg6 {[%clk 0:00:15.4]}
48. Nxb5 {[%clk 0:00:58.2]} 48... e3 {[%clk 0:00:16.8]} 49. Bxe3 {[%clk
0:00:57.4]} 49... fxe3 {[%clk 0:00:16.1]} 50. Rxe3 {[%clk 0:00:57.9]} 50... Kf5
{[%clk 0:00:16]} 51. Nd6+ {[%clk 0:00:50.7]} 51... Kf4 {[%clk 0:00:16.8]} 52.
Re1 {[%clk 0:00:44.3]} 52... Kf3 {[%clk 0:00:12.7]} 53. Rf1+ {[%clk 0:00:43.3]}
53... Ke2 {[%clk 0:00:13.4]} 54. Rf7 {[%clk 0:00:40.3]} 54... Rh5+ {[%clk
0:00:08.2]} 55. Kg3 {[%clk 0:00:40.6]} 55... Rg5+ {[%clk 0:00:10.1]} 56. Kf4
{[%clk 0:00:41.4]} 1-0

[Event "*** Titled Tuesday Blitz"]
[Site "Chess.com"]
[Date "2019.02.05"]
[Round "4"]
[White "pKiLz5Rn9b"]
[Black "Astaneh"]
[Result "1/2-1/2"]
[WhiteElo "2733"]
[BlackElo "2562"]
[TimeControl "180+2"]
[EndTime "13:51:09 PST"]
[Termination "Game drawn - insufficient material"]

1. Nf3 {[%clk 0:03:01.9]} 1... Nf6 {[%clk 0:02:59.3]} 2. b3 {[%clk 0:03:03.4]}
2... g6 {[%clk 0:02:59.9]} 3. Bb2 {[%clk 0:03:04.9]} 3... Bg7 {[%clk 0:03:01.6]}
4. g3 {[%clk 0:03:06.7]} 4... O-O {[%clk 0:03:03.1]} 5. Bg2 {[%clk 0:03:08.3]}
5... d5 {[%clk 0:03:04.3]} 6. c4 {[%clk 0:03:08.7]} 6... dxc4 {[%clk 0:03:03.7]}
7. bxc4 {[%clk 0:03:09.6]} 7... c5 {[%clk 0:03:03.4]} 8. O-O {[%clk 0:03:11.1]}
8... Nc6 {[%clk 0:03:04.9]} 9. Nc3 {[%clk 0:03:11.5]} 9... Bg4 {[%clk
0:03:00.5]} 10. d3 {[%clk 0:03:10.6]} 10... Qd7 {[%clk 0:03:01.3]} 11. Rb1
{[%clk 0:03:10.2]} 11... Bh3 {[%clk 0:02:59.7]} 12. Qa4 {[%clk 0:03:10.7]} 12...
Bxg2 {[%clk 0:02:54.1]} 13. Kxg2 {[%clk 0:03:12.6]} 13... b6 {[%clk 0:02:47.7]}
14. Rfd1 {[%clk 0:03:13.5]} 14... Rfb8 {[%clk 0:02:46.3]} 15. e3 {[%clk
0:03:05.5]} 15... Qb7 {[%clk 0:02:46.1]} 16. Kg1 {[%clk 0:03:00.5]} 16... Ng4
{[%clk 0:02:44.9]} 17. Nd5 {[%clk 0:02:56.4]} 17... Bxb2 {[%clk 0:02:43.7]} 18.
Qxc6 {[%clk 0:02:51.8]} 18... Bg7 {[%clk 0:02:26]} 19. h3 {[%clk 0:02:50.2]}
19... Nf6 {[%clk 0:02:23.5]} 20. d4 {[%clk 0:02:30.7]} 20... cxd4 {[%clk
0:02:04.5]} 21. exd4 {[%clk 0:02:29.9]} 21... e6 {[%clk 0:01:58.4]} 22. Qxb7
{[%clk 0:02:02.6]} 22... Rxb7 {[%clk 0:01:57.5]} 23. Ne3 {[%clk 0:02:01.4]}
23... Rc7 {[%clk 0:01:55.3]} 24. a4 {[%clk 0:02:02.9]} 24... Ne4 {[%clk
0:01:51.7]} 25. Rdc1 {[%clk 0:01:59.9]} 25... Rd8 {[%clk 0:01:44.4]} 26. a5
{[%clk 0:01:39.3]} 26... bxa5 {[%clk 0:01:38.3]} 27. Ra1 {[%clk 0:01:01.9]}
27... Bxd4 {[%clk 0:01:36.2]} 28. Nxd4 {[%clk 0:01:02.5]} 28... Rxd4 {[%clk
0:01:37.1]} 29. Rxa5 {[%clk 0:01:04.4]} 29... Rd2 {[%clk 0:01:26.2]} 30. Rf1
{[%clk 0:00:52.8]} 30... Re2 {[%clk 0:01:26.3]} 31. Kg2 {[%clk 0:00:50.5]} 31...
Nd2 {[%clk 0:01:26.2]} 32. Rd1 {[%clk 0:00:42.6]} 32... Nxc4 {[%clk 0:01:18.9]}
33. Nxc4 {[%clk 0:00:42.9]} 33... Rxc4 {[%clk 0:01:20.8]} 34. Rxa7 {[%clk
0:00:33.9]} 34... Rcc2 {[%clk 0:01:21.9]} 35. Rf1 {[%clk 0:00:35.5]} 35... e5
{[%clk 0:01:23.2]} 36. h4 {[%clk 0:00:37]} 36... e4 {[%clk 0:01:23.8]} 37. Re7
{[%clk 0:00:34.6]} 37... e3 {[%clk 0:01:24]} 38. Kf3 {[%clk 0:00:31.6]} 38...
Rxf2+ {[%clk 0:01:19.2]} 39. Rxf2 {[%clk 0:00:33]} 39... exf2 {[%clk 0:01:15.6]}
40. Kg2 {[%clk 0:00:34.5]} 40... Kg7 {[%clk 0:01:01]} 41. Re5 {[%clk 0:00:36]}
41... Kf6 {[%clk 0:00:59.7]} 42. Ra5 {[%clk 0:00:37.6]} 42... Ke6 {[%clk
0:00:59.7]} 43. Rb5 {[%clk 0:00:38.2]} 43... Kd6 {[%clk 0:00:48.2]} 44. Ra5
{[%clk 0:00:38.8]} 44... Kc6 {[%clk 0:00:44.7]} 45. Ra7 {[%clk 0:00:37.5]} 45...
f5 {[%clk 0:00:28.8]} 46. Rxh7 {[%clk 0:00:37.6]} 46... Kd5 {[%clk 0:00:30.3]}
47. Rh6 {[%clk 0:00:30.2]} 47... Rc6 {[%clk 0:00:16]} 48. Kxf2 {[%clk
0:00:30.8]} 48... Ke5 {[%clk 0:00:16.9]} 49. Rh8 {[%clk 0:00:29.2]} 49... Rc2+
{[%clk 0:00:16.9]} 50. Kf3 {[%clk 0:00:30.3]} 50... Rc3+ {[%clk 0:00:18.4]} 51.
Kf2 {[%clk 0:00:31.5]} 51... Rc2+ {[%clk 0:00:17.8]} 52. Kf3 {[%clk 0:00:32.4]}
52... Rc3+ {[%clk 0:00:18.9]} 53. Kg2 {[%clk 0:00:33.7]} 53... Rc2+ {[%clk
0:00:20.4]} 54. Kh3 {[%clk 0:00:33.3]} 54... Rc3 {[%clk 0:00:21.9]} 55. Rg8
{[%clk 0:00:33.1]} 55... f4 {[%clk 0:00:18.4]} 56. Rxg6 {[%clk 0:00:33.7]} 56...
Rxg3+ {[%clk 0:00:19.5]} 57. Rxg3 {[%clk 0:00:34.3]} 57... fxg3 {[%clk
0:00:21.4]} 58. h5 {[%clk 0:00:34.9]} 58... Kf6 {[%clk 0:00:23.3]} 59. h6 {[%clk
0:00:34.9]} 59... Kg6 {[%clk 0:00:24.3]} 60. h7 {[%clk 0:00:35.8]} 60... Kxh7
{[%clk 0:00:25.8]} 61. Kxg3 {[%clk 0:00:37.2]} 1/2-1/2

[Event "*** Titled Tuesday Blitz"]
[Site "Chess.com"]
[Date "2019.02.05"]
[Round "4"]
[White "MathiasWomacka"]
[Black "JosefineHeinemann"]
[Result "1-0"]
[WhiteElo "2240"]
[BlackElo "2401"]
[TimeControl "180+2"]
[EndTime "13:51:24 PST"]
[Termination "MathiasWomacka won by resignation"]

1. e4 {[%clk 0:03:00.3]} 1... e5 {[%clk 0:02:55.1]} 2. Nf3 {[%clk 0:03:01]} 2...
Nc6 {[%clk 0:02:53.3]} 3. Bb5 {[%clk 0:03:01.4]} 3... a6 {[%clk 0:02:54.6]} 4.
Bxc6 {[%clk 0:03:02.3]} 4... dxc6 {[%clk 0:02:55.8]} 5. O-O {[%clk 0:03:03.8]}
5... Bg4 {[%clk 0:02:56.9]} 6. h3 {[%clk 0:03:04.4]} 6... h5 {[%clk 0:02:58.3]}
7. d3 {[%clk 0:03:05]} 7... Qf6 {[%clk 0:02:58.6]} 8. Nbd2 {[%clk 0:03:05.8]}
8... g5 {[%clk 0:02:58.3]} 9. Nc4 {[%clk 0:03:05.6]} 9... Bxf3 {[%clk
0:02:58.1]} 10. Qxf3 {[%clk 0:03:07.5]} 10... Qxf3 {[%clk 0:02:59.3]} 11. gxf3
{[%clk 0:03:09.4]} 11... f6 {[%clk 0:02:53.2]} 12. Be3 {[%clk 0:03:10]} 12...
O-O-O {[%clk 0:02:48.9]} 13. Rfd1 {[%clk 0:03:10.1]} 13... Ne7 {[%clk
0:02:30.4]} 14. d4 {[%clk 0:03:09.5]} 14... exd4 {[%clk 0:02:25.7]} 15. Bxd4
{[%clk 0:03:08.6]} 15... Bg7 {[%clk 0:02:26.9]} 16. Ne3 {[%clk 0:02:45.6]} 16...
Rd7 {[%clk 0:02:21.4]} 17. Bc3 {[%clk 0:02:36.6]} 17... Rhd8 {[%clk 0:02:20]}
18. Kg2 {[%clk 0:02:28.2]} 18... Ng6 {[%clk 0:02:16.4]} 19. Rxd7 {[%clk
0:02:20.3]} 19... Nh4+ {[%clk 0:02:12.7]} 20. Kg3 {[%clk 0:02:15.1]} 20... Rxd7
{[%clk 0:02:14.6]} 21. f4 {[%clk 0:02:15.2]} 21... gxf4+ {[%clk 0:02:07.4]} 22.
Kxf4 {[%clk 0:02:07.5]} 22... Bh6+ {[%clk 0:02:07.2]} 23. Kg3 {[%clk 0:02:08.5]}
23... Bxe3 {[%clk 0:01:57.9]} 24. fxe3 {[%clk 0:02:10.4]} 24... Ng6 {[%clk
0:01:59.3]} 25. Rf1 {[%clk 0:02:03.5]} 25... Rd6 {[%clk 0:01:59.7]} 26. Bxf6
{[%clk 0:01:44.6]} 26... Re6 {[%clk 0:01:54.5]} 27. Bd4 {[%clk 0:01:41.5]} 27...
Rxe4 {[%clk 0:01:51.1]} 28. Rf5 {[%clk 0:01:38.5]} 28... b6 {[%clk 0:01:42.1]}
29. Rxh5 {[%clk 0:01:28.7]} 29... c5 {[%clk 0:01:43.1]} 30. Kf3 {[%clk
0:01:30.2]} 30... Re7 {[%clk 0:01:37]} 31. Bc3 {[%clk 0:01:31.1]} 31... Rf7+
{[%clk 0:01:37.6]} 32. Kg3 {[%clk 0:01:21.4]} 32... Re7 {[%clk 0:01:37.5]} 33.
Rg5 {[%clk 0:01:19]} 33... Rxe3+ {[%clk 0:01:25.3]} 34. Kf2 {[%clk 0:01:19.9]}
34... Re6 {[%clk 0:01:27.2]} 35. Rg4 {[%clk 0:01:15.4]} 35... b5 {[%clk
0:01:25.9]} 36. a3 {[%clk 0:01:15]} 36... Kd7 {[%clk 0:01:16.9]} 37. h4 {[%clk
0:01:16.1]} 37... Ke8 {[%clk 0:01:17.3]} 38. h5 {[%clk 0:01:15.9]} 38... Ne7
{[%clk 0:01:15.8]} 39. Bd2 {[%clk 0:01:03.4]} 39... Nf5 {[%clk 0:01:10.3]} 40.
Rg5 {[%clk 0:00:55.7]} 40... Nd6 {[%clk 0:01:10.5]} 41. Kf3 {[%clk 0:00:39]}
41... Kf7 {[%clk 0:01:05.3]} 42. Rxc5 {[%clk 0:00:36.5]} 42... Rf6+ {[%clk
0:01:04.3]} 43. Bf4 {[%clk 0:00:32.8]} 43... Ne8 {[%clk 0:01:04.9]} 44. Kg4
{[%clk 0:00:32.2]} 44... c6 {[%clk 0:01:04.4]} 45. Re5 {[%clk 0:00:28.8]} 45...
Ng7 {[%clk 0:01:04.6]} 46. h6 {[%clk 0:00:28.5]} 46... Ne6 {[%clk 0:01:00]} 47.
Be3 {[%clk 0:00:25.5]} 47... Nf8 {[%clk 0:00:58.6]} 48. Rf5 {[%clk 0:00:24.7]}
48... Nh7 {[%clk 0:00:53.9]} 49. Rxf6+ {[%clk 0:00:24.5]} 49... Kxf6 {[%clk
0:00:55.5]} 50. Kf4 {[%clk 0:00:25]} 50... Nf8 {[%clk 0:00:51.8]} 51. Ke4 {[%clk
0:00:25.5]} 51... Kg6 {[%clk 0:00:47.5]} 52. Ke5 {[%clk 0:00:24]} 52... c5
{[%clk 0:00:48.6]} 53. Bxc5 {[%clk 0:00:23]} 53... Nd7+ {[%clk 0:00:46.5]} 54.
Kd6 {[%clk 0:00:23.6]} 54... Nf6 {[%clk 0:00:47.1]} 55. Be3 {[%clk 0:00:24.2]}
55... Ng4 {[%clk 0:00:47.3]} 56. Bd2 {[%clk 0:00:24.9]} 56... Nf2 {[%clk
0:00:47.6]} 57. Kc6 {[%clk 0:00:25.4]} 57... Ne4 {[%clk 0:00:48.5]} 58. Be3
{[%clk 0:00:26.6]} 58... Nf6 {[%clk 0:00:47.5]} 59. Kb7 {[%clk 0:00:26.7]} 59...
a5 {[%clk 0:00:48]} 60. Ka6 {[%clk 0:00:27.4]} 60... Nd5 {[%clk 0:00:46.8]} 61.
Bd2 {[%clk 0:00:27]} 61... b4 {[%clk 0:00:42]} 62. Kxa5 {[%clk 0:00:27.4]} 62...
bxa3 {[%clk 0:00:43]} 63. bxa3 {[%clk 0:00:29.3]} 1-0